fUSD/lending_fUSD_20240903
["ID","MTS","AMOUNT","RATE_DAILY","PERIOD"]
[337052309,1725383447067,-2803.63,0.00014128,2]
[337052310,1725383447076,-685.22,0.00014128,2]
[337052311,1725383447086,-8091.71,0.00014128,2]
[337052312,1725383447095,-685.22,0.00014128,2]
[337052313,1725383447105,-8091.71,0.00014128,2]
[337052314,1725383447114,-685.22,0.00014128,2]
[337052315,1725383447124,-8091.71,0.00014128,2]
[337052316,1725383447133,-685.22,0.00014128,2]
[337052317,1725383447142,-8091.71,0.00014128,2]
[337052318,1725383447152,-685.22,0.00014128,2]
[337052319,1725383447161,-151.0,0.00014128,2]
[337052320,1725383447170,-151.0,0.00014128,2]
[337052321,1725383447179,-11045.15,0.00014128,2]
[337052322,1725383447188,-11045.15,0.00014128,2]
[337052323,1725383447197,-2259.59,0.00014128,2]
[337052324,1725383447207,-11045.15,0.00014128,2]
[337052325,1725383447216,-2259.59,0.00014128,2]
[337052326,1725383447225,-2259.59,0.00014128,2]
[337052327,1725383447235,-2954.45,0.00014128,2]
[337052328,1725383447244,-2259.59,0.00014128,2]
[337052329,1725383447253,-2954.45,0.00014128,2]
[337052330,1725383447262,-2954.45,0.00014128,2]
[337052331,1725383447272,-2954.45,0.00014128,2]
[337052332,1725383447281,-5461.11,0.00014128,2]
[337052333,1725383447290,-500.0,0.00014128,2]
[337052334,1725383447300,-500.0,0.00014128,2]
[337052335,1725383447309,-500.0,0.00014128,2]
[337052336,1725383447319,-500.0,0.00014128,2]
[337052337,1725383447328,-500.0,0.00014128,2]
[337052338,1725383447338,-500.0,0.00014128,2]
[337052339,1725383447347,-500.0,0.00014128,2]
[337052340,1725383447356,-1915.72,0.00014128,2]
[337052341,1725383447366,-500.0,0.00014128,2]
[337052342,1725383447375,-500.0,0.00014128,2]
[337052343,1725383447385,-500.0,0.00014128,2]
[337052344,1725383447394,-1915.72,0.00014128,2]
[337052345,1725383447403,-500.0,0.00014128,2]
[337052346,1725383447412,-1915.72,0.00014128,2]
[337052347,1725383447421,-500.0,0.00014128,2]
[337052348,1725383447431,-1915.72,0.00014128,2]
[337052349,1725383447440,-500.0,0.00014128,2]
[337052350,1725383447451,-3618.14,0.00014128,2]
[337052351,1725383447462,-7427.08,0.00014128,2]
[337052352,1725383447473,-7427.08,0.00014128,2]
[337052353,1725383447482,-7427.08,0.00014128,2]
[337052354,1725383447491,-1944.35937713,0.00014128,2]
[337052355,1725383447802,-9839.28062287,0.00014128,2]
[337052356,1725383447811,-7427.08,0.00014128,2]
[337052357,1725383447820,-11783.64,0.00014128,2]
[337052358,1725383447829,-7427.08,0.00014128,2]
[337052359,1725383447838,-11783.64,0.00014128,2]
[337052360,1725383447847,-11783.64,0.00014128,2]
[337052361,1725383447856,-3511.43,0.00014128,2]
[337052362,1725383447865,-3511.43,0.00014128,2]
[337052363,1725383447875,-3511.43,0.00014128,2]
[337052364,1725383447884,-3245.05,0.00014128,2]
[337052365,1725383447893,-3245.05,0.00014128,2]
[337052366,1725383447902,-3245.05,0.00014128,2]
[337052367,1725383447911,-3245.05,0.00014128,2]
[337052368,1725383447921,-6928.67,0.00014128,2]
[337052369,1725383447931,-6928.67,0.00014128,2]
[337052370,1725383447940,-6928.67,0.00014128,2]
[337052371,1725383447950,-6928.67,0.00014128,2]
[337052372,1725383447960,-151.0,0.00014128,2]
[337052373,1725383447969,-151.0,0.00014128,2]
[337052374,1725383447978,-2104.54,0.00014128,2]
[337052375,1725383447988,-151.0,0.00014128,2]
[337052376,1725383447997,-151.0,0.00014128,2]
[337052377,1725383448006,-151.0,0.00014128,2]
[337052378,1725383448015,-151.0,0.00014128,2]
[337052379,1725383448024,-151.0,0.00014128,2]
[337052380,1725383448034,-151.0,0.00014128,2]
[337052381,1725383448043,-151.0,0.00014128,2]
[337052382,1725383448052,-151.0,0.00014128,2]
[337052383,1725383448061,-151.0,0.00014128,2]
[337052384,1725383448070,-261.289229,0.00014128,2]
[337052385,1725383448079,-151.0,0.00014128,2]
[337052386,1725383448088,-2296.08,0.00014128,2]
[337052387,1725383448098,-2296.08,0.00014128,2]
[337052388,1725383448107,-2296.08,0.00014128,2]
[337052389,1725383448116,-2296.08,0.00014128,2]
[337052390,1725383448126,-1412.14,0.00014128,2]
[337052391,1725383448135,-508.97,0.00014128,2]
[337052392,1725383448144,-1689.23,0.00014128,2]
[337052393,1725383448153,-4870.08,0.00014128,2]
[337052394,1725383448163,-1689.23,0.00014128,2]
[337052395,1725383448172,-4870.08,0.00014128,2]
[337052396,1725383448181,-1689.23,0.00014128,2]
[337052397,1725383448190,-4870.08,0.00014128,2]
[337052398,1725383448200,-1689.23,0.00014128,2]
[337052399,1725383448210,-4870.08,0.00014128,2]
[337052400,1725383448219,-4870.08,0.00014128,2]
[337052401,1725383448228,-3066.91,0.00014128,2]
[337052402,1725383448238,-3066.91,0.00014128,2]
[337052403,1725383448247,-3066.91,0.00014128,2]
[337052404,1725383448257,-3066.91,0.00014128,2]
[337052405,1725383448266,-3066.91,0.00014128,2]
[337052406,1725383448276,-2059.56,0.00014128,2]
[337052407,1725383448285,-2059.56,0.00014128,2]
[337052408,1725383448295,-2059.56,0.00014128,2]
[337052409,1725383448305,-2059.56,0.00014128,2]
[337052410,1725383448315,-961.75,0.00014128,2]
[337052411,1725383448325,-961.75,0.00014128,2]
[337052412,1725383448334,-2844.18,0.00014128,2]
[337052413,1725383448343,-961.75,0.00014128,2]
[337052414,1725383448353,-1410.04,0.00014128,2]
[337052415,1725383448362,-1410.04,0.00014128,2]
[337052416,1725383448372,-1410.04,0.00014128,2]
[337052417,1725383448381,-1410.04,0.00014128,2]
[337052418,1725383448390,-531.91,0.00014128,2]
[337052419,1725383448400,-531.91,0.00014128,2]
[337052420,1725383448409,-531.91,0.00014128,2]
[337052421,1725383448418,-531.91,0.00014128,2]
[337052422,1725383448428,-22280.28,0.00014128,2]
[337052423,1725383448437,-22280.28,0.00014128,2]
[337052424,1725383448447,-22280.28,0.00014128,2]
[337052425,1725383448456,-1993.17,0.00014128,2]
[337052426,1725383448467,-1993.17,0.00014128,2]
[337052427,1725383448477,-22280.28,0.00014128,2]
[337052428,1725383448487,-1993.17,0.00014128,2]
[337052429,1725383448496,-22280.28,0.00014128,2]
[337052430,1725383448506,-500.0,0.00014128,2]
[337052431,1725383448515,-1993.17,0.00014128,2]
[337052432,1725383448525,-503.60570515,0.00014128,2]
[337052433,1725383448534,-500.0,0.00014128,2]
[337052434,1725383448545,-23614.9,0.00014128,2]
[337052435,1725383448554,-500.0,0.00014128,2]
[337052436,1725383448564,-500.0,0.00014128,2]
[337052437,1725383448574,-1217.87507295,0.00014128,2]
[337052438,1725383448592,-1094.57625342,0.00014128,2]
[337052439,1725383448603,-578.385,0.00014128,2]
[337052440,1725383448983,-1369.9970886,0.00013976,2]
[337052441,1725383448992,-600.4,0.00014127,2]
[337052442,1725383449002,-203.8875239,0.00014127,2]
[337052443,1725383449334,-396.5124761,0.00014127,2]
[337052444,1725383449344,-254.535034,0.00014127,2]
[337052445,1725383449353,-2248.9524899,0.00014128,2]
[337052446,1725383449464,-549.96057904,0.00013962,2]
[337052447,1725383449479,-2472.6753754,0.00013962,2]
[337052448,1725383449489,-427.3246246,0.00014128,2]
[337052449,1725383473912,300.0,0.00011781,7]
[337052450,1725383501621,585.7077,0.00012939,2]
[337052451,1725383536544,914.04,0.00011231,2]
[337052452,1725383589468,150.1,0.00010959,2]
[337052453,1725383925061,929.68,0.00012996,2]
[337052454,1725383975309,216.31,0.00012991,2]
[337052455,1725384020724,868.33,0.00011079,2]
[337052456,1725384117504,550.0,0.00011,2]
[337052457,1725384118649,600.0,0.00013,2]
[337052458,1725384205068,672.0,0.00012996,2]
[337052459,1725384209198,795.0,0.00013003,2]
[337052460,1725384230312,795.0,0.00013003,2]
[337052461,1725384251513,811.90529697,0.00013003,2]
[337052465,1725384329703,195.65,0.000101,2]
[337052466,1725384376132,250.0,0.00012977,2]
[337052467,1725384423469,464.84,0.00012975,2]
[337052468,1725384501605,198.9,0.00012975,2]
[337052481,1725384566919,824.91,0.00011061,2]
[337052483,1725384602884,-422.7,0.00013057,2]
[337052484,1725384602915,-0.73041447,0.00013057,2]
[337052514,1725384632474,-290.46,0.00013132,2]
[337052516,1725384632500,-37.54,0.00013132,2]
[337052517,1725384632510,-418.15310806,0.00013325,2]
[337052518,1725384632528,-406.75689194,0.00013325,2]
[337052519,1725384632538,-43.24310806,0.00013441,2]
[337052521,1725384632554,-551.105575,0.00013441,2]
[337052526,1725384638414,-200.65131694,0.00013441,2]
[337052527,1725384638424,-159.12,0.00013632,2]
[337052528,1725384638434,-150.0,0.00013859,2]
[337052529,1725384638443,-150.0,0.00013893,2]
[337052530,1725384638453,-150.0,0.00013904,2]
[337052531,1725384638462,-155.59736033,0.00013912,2]
[337052532,1725384638472,-1500.0,0.00013913,2]
[337052533,1725384638481,-152.64908017,0.00013919,2]
[337052534,1725384638490,-351.10525875,0.00013924,2]
[337052539,1725384638688,-985.02,0.00013924,2]
[337052541,1725384638711,-163.87474125,0.00013924,2]
[337052542,1725384638721,-150.0,0.00013925,2]
[337052543,1725384638730,-150.0,0.00013926,2]
[337052544,1725384638739,-121.83293314,0.00013929,2]
[337052546,1725384640280,-195.30046144,0.00013929,2]
[337052547,1725384640291,-150.0,0.00013943,2]
[337052548,1725384640300,-543.80384252,0.00013944,2]
[337052549,1725384640311,-956.19615748,0.00013944,2]
[337052550,1725384640321,-150.0,0.00013946,2]
[337052551,1725384640330,-276.91374995,0.00013957,2]
[337052552,1725384640397,-1223.08625005,0.00013957,2]
[337052553,1725384640407,-500.0,0.00013972,2]
[337052554,1725384640416,-500.0,0.00013972,2]
[337052555,1725384640426,-2000.0,0.00013972,2]
[337052556,1725384640435,-20.08709949,0.00013972,2]
[337052557,1725384640447,-1679.91290051,0.00013972,2]
[337052558,1725384640457,-759.64356013,0.00013973,2]
[337052559,1725384640467,-1579.53481898,0.00013976,2]
[337052560,1725384640478,-315.6,0.00013976,2]
[337052561,1725384640490,-1621.6911387,0.00013976,2]
[337052562,1725384640505,-280.61252402,0.00013976,2]
[337052563,1725384640517,-888.822194,0.00013976,2]
[337052564,1725384640528,-1600.72265866,0.00013976,2]
[337052565,1725384640538,-150.0,0.00013977,2]
[337052566,1725384640547,-150.0,0.00013982,2]
[337052567,1725384640556,-150.0,0.00013982,2]
[337052568,1725384640566,-150.0,0.00013991,2]
[337052569,1725384640574,-1500.0,0.00013998,2]
[337052571,1725384640584,-1500.0,0.00014,2]
[337052573,1725384640593,-170.42625482,0.00014024,2]
[337052574,1725384640603,-1229.01,0.00014026,2]
[337052575,1725384640612,-500.0,0.00014026,2]
[337052576,1725384640621,-500.0,0.00014026,2]
[337052577,1725384640630,-500.0,0.00014026,2]
[337052578,1725384640640,-500.0,0.00014026,2]
[337052579,1725384640649,-293.56418972,0.00014026,2]
[337052580,1725384640658,-1162.36,0.00014026,2]
[337052581,1725384640667,-584.35,0.00014026,2]
[337052582,1725384640677,-1458.08,0.00014026,2]
[337052583,1725384640687,-571.85,0.00014026,2]
[337052584,1725384640697,-500.0,0.00014026,2]
[337052585,1725384640707,-202.9393343,0.00014026,2]
[337052586,1725384640717,-608.74,0.00014026,2]
[337052587,1725384640726,-571.18,0.00014026,2]
[337052588,1725384640735,-582.13,0.00014026,2]
[337052589,1725384640744,-1077.58,0.00014026,2]
[337052590,1725384640754,-500.0,0.00014026,2]
[337052591,1725384640764,-500.0,0.00014026,2]
[337052592,1725384640774,-1079.92,0.00014026,2]
[337052593,1725384640784,-865.06,0.00014026,2]
[337052594,1725384640795,-500.0,0.00014026,2]
[337052595,1725384640804,-500.0,0.00014026,2]
[337052596,1725384640814,-772.5,0.00014026,2]
[337052597,1725384640825,-500.0,0.00014026,2]
[337052598,1725384640835,-742.91,0.00014026,2]
[337052599,1725384640846,-500.0,0.00014026,2]
[337052600,1725384640857,-2439.42,0.00014026,2]
[337052601,1725384640867,-512.36,0.00014026,2]
[337052602,1725384640877,-1524.11,0.00014026,2]
[337052603,1725384640886,-500.0,0.00014026,2]
[337052604,1725384640895,-1559.6,0.00014026,2]
[337052605,1725384640905,-10784.46,0.00014026,2]
[337052606,1725384640916,-1425.96,0.00014026,2]
[337052607,1725384640926,-3617.37,0.00014026,2]
[337052608,1725384640935,-504.97,0.00014026,2]
[337052609,1725384640945,-500.0,0.00014026,2]
[337052610,1725384640955,-786.77,0.00014026,2]
[337052611,1725384640965,-500.0,0.00014026,2]
[337052612,1725384640975,-858.27,0.00014026,2]
[337052613,1725384640984,-49139.89596893,0.00014026,2]
[337052614,1725384641007,-3147.57832311,0.00014026,2]
[337052663,1725384646514,-5068.85069722,0.00013897,2]
[337052664,1725384646524,-27933.25570796,0.00014026,2]
[337052665,1725384646535,-771.2,0.00014026,2]
[337052666,1725384646545,-500.0,0.00014026,2]
[337052667,1725384646554,-6920.4,0.00014026,2]
[337052668,1725384646564,-500.0,0.00014026,2]
[337052669,1725384646573,-500.0,0.00014026,2]
[337052670,1725384646583,-4481.62,0.00014026,2]
[337052671,1725384646593,-2808.31,0.00014026,2]
[337052672,1725384646603,-628.89,0.00014026,2]
[337052673,1725384646615,-1798.35,0.00014026,2]
[337052674,1725384646626,-734.56,0.00014026,2]
[337052675,1725384646636,-1946.29,0.00014026,2]
[337052676,1725384646645,-549.19,0.00014026,2]
[337052677,1725384646655,-1746.80861335,0.00014026,2]
[337052678,1725384897389,292.0,0.0001285,2]
[337052679,1725384923859,1600.0,9.972e-05,2]
[337052680,1725384925449,1600.0,0.00011342,2]
[337052681,1725384926591,1600.0,9.972e-05,2]
[337052682,1725384927049,1600.0,0.00012712,2]
[337052683,1725384928313,500.0,0.00011068,2]
[337052684,1725384928363,1600.0,0.00011342,2]
[337052685,1725384929978,1600.0,0.00012712,2]
[337052686,1725384966316,500.0,0.00011068,2]
[337052687,1725384967722,500.0,9.972e-05,2]
[337052688,1725384969315,500.0,0.00012712,2]
[337052689,1725385045819,-661.0,0.00014025,5]
[337052690,1725385108499,789.07,0.00011087,2]
[337052691,1725385197457,1385.44,0.00012993,2]
[337052692,1725385297375,537.6,0.00012978,2]
[337052693,1725385384329,314.2,0.00010959,2]
[337052694,1725385482583,347.04,0.00012962,2]
[337052695,1725385517721,250.0,0.00012962,2]
[337052696,1725385551709,250.0,0.00012969,2]
[337052697,1725385554874,173.05,0.00012976,2]
[337052698,1725385571312,250.0,0.00012976,2]
[337052699,1725385622621,749.61,0.00011065,2]
[337052700,1725385753748,-187.17,0.00013016,2]
[337052701,1725385753779,-462.4,0.00013092,2]
[337052702,1725385753811,-292.0,0.0001322,2]
[337052704,1725385753840,-725.05078467,0.00013329,2]
[337052712,1725385832299,-569.92,0.00013034,2]
[337052713,1725385832309,-24.55921533,0.00013329,2]
[337052715,1725385832319,-292.0,0.000136,2]
[337052717,1725385832328,-1004.0,0.000138,2]
[337052718,1725385832338,-500.0,0.00013808,2]
[337052719,1725385832347,-500.0,0.00013808,2]
[337052720,1725385832357,-150.0,0.00013881,2]
[337052721,1725385832366,-1500.0,0.00013888,2]
[337052722,1725385832376,-150.0,0.000139,2]
[337052723,1725385832385,-1000.0,0.000139,2]
[337052724,1725385832394,-1999.40266,0.0001392,2]
[337052725,1725385832404,-2418.10876357,0.00013925,2]
[337052726,1725385832413,-234.85135176,0.00013926,2]
[337052727,1725385832422,-209.16124578,0.00013934,2]
[337052728,1725385832431,-234.85135174,0.00013951,2]
[337052729,1725385832441,-234.85135174,0.00013976,2]
[337052730,1725385832450,-292.0,0.0001398,2]
[337052731,1725385832459,-1999.40265,0.00014,2]
[337052732,1725385832469,-234.85135174,0.00014001,2]
[337052733,1725385832478,-150.0,0.00014015,2]
[337052734,1725385832488,-151.49000429,0.00014022,2]
[337052735,1725385832498,-151.49000429,0.00014023,2]
[337052736,1725385832507,-745.02,0.00014024,2]
[337052737,1725385832516,-745.02,0.00014024,2]
[337052738,1725385832526,-500.0,0.00014024,2]
[337052739,1725385832535,-617.89,0.00014024,2]
[337052741,1725385832546,-617.89,0.00014024,2]
[337052743,1725385832555,-500.0,0.00014024,2]
[337052745,1725385832565,-2691.29,0.00014024,2]
[337052746,1725385832574,-1942.49768166,0.00014024,2]
[337052959,1725385840698,-317.13339458,0.00013925,2]
[337052960,1725385840708,-163.37894835,0.00013925,2]
[337052962,1725385840719,-694.86265707,0.00014023,2]
[337053187,1725385843332,-781.72959864,0.00014023,2]
[337053190,1725385843348,-280.44910125,0.00014023,2]
[337053201,1725385843451,-1738.2467599,0.00014023,2]
[337053205,1725385843867,-5149.13413065,0.00014023,2]
[337053215,1725385846380,-2603.509696,0.00014023,2]
[337053226,1725385876152,173.08,0.00010959,2]
[337053227,1725385883831,500.0,9.972e-05,2]
[337053228,1725385885421,500.0,0.00012712,2]
[337053229,1725385887598,500.0,0.00011068,2]
[337053230,1725385899103,1900.0,9.972e-05,2]
[337053231,1725385900734,1900.0,0.00011342,2]
[337053232,1725385900912,1600.0,9.972e-05,2]
[337053233,1725385902440,1900.0,0.00012712,2]
[337053234,1725385902632,1600.0,0.00011342,2]
[337053235,1725385902915,500.0,0.00011068,2]
[337053236,1725385904214,1600.0,0.00012712,2]
[337053237,1725385929075,550.0,0.00011,2]
[337053238,1725385930194,600.0,0.00013,2]
[337053239,1725386129897,250.0,0.00012997,2]
[337053240,1725386162668,250.0,0.00012995,2]
[337053241,1725386196510,23900.0,0.00012995,2]
[337053242,1725386248587,465.83,0.00012967,2]
[337053243,1725386281794,725.77,0.00011037,2]
[337053244,1725386318992,544.06,0.00012898,2]
[337053245,1725386383422,155.3,0.00010959,2]
[337053246,1725386404586,3297.47,0.00012954,2]
[337053247,1725386537017,150.0,0.00012949,2]
[337053248,1725386608252,187.17,0.00012938,2]
[337053249,1725386624217,250.0,0.00012934,2]
[337053250,1725386708301,1000.0,0.00012955,2]
[337053251,1725386811053,689.48,0.00011032,2]
[337053252,1725386822855,232.91,0.0001295,2]
[337053253,1725386824507,564.75,0.0001295,2]
[337053254,1725386926353,-186.37,0.00013009,2]
[337053255,1725386926381,-165.35,0.00013016,2]
[337053256,1725386926411,-237.52,0.00013032,2]
[337053257,1725386926438,-218.93,0.00013061,2]
[337053258,1725386926467,-288.5409,0.00013229,2]
[337053259,1725386926499,-4299.84591469,0.00013229,2]
[337053260,1725386926540,-963.34935047,0.00013229,2]
[337053261,1725386926578,-4846.38723484,0.00013229,2]
[337053262,1725386926608,-550.16957985,0.00013296,2]
[337053268,1725387031475,-139.31042015,0.00013296,2]
[337053269,1725387031485,-164.43,0.00013699,2]
[337053270,1725387031495,-150.0,0.00013754,2]
[337053271,1725387031504,-143.60185892,0.00013808,2]
[337053272,1725387031516,-356.39814108,0.00013808,2]
[337053273,1725387031526,-501.04909667,0.00013808,2]
[337053274,1725387031536,-2416.01075331,0.00013822,2]
[337053275,1725387031545,-150.0,0.00013822,2]
[337053276,1725387031554,-675.1766,0.00013823,2]
[337053277,1725387031566,-4770.27673334,0.00013823,2]
[337053278,1725387031578,-1786.71591369,0.00013823,2]
[337053279,1725387031590,-1332.63115809,0.00013823,2]
[337053280,1725387031606,-4172.17109488,0.00013823,2]
[337053281,1725387031618,-213.836,0.00013823,2]
[337053282,1725387031627,-260.4986,0.00013823,2]
[337053283,1725387031641,-2500.0,0.00013823,2]
[337053284,1725387031651,-317.13339458,0.00013824,2]
[337053285,1725387031660,-164.72161916,0.00013824,2]
[337053286,1725387031670,-1210.0,0.000139,2]
[337053287,1725387031680,-4044.91967454,0.00013913,2]
[337053288,1725387031689,-256.65943804,0.0001392,2]
[337053290,1725387031699,-500.0,0.00013922,2]
[337053291,1725387031708,-682.93,0.00013922,2]
[337053293,1725387031718,-1177.8,0.00013922,2]
[337053294,1725387031729,-500.0,0.00013922,2]
[337053295,1725387031737,-500.0,0.00013922,2]
[337053296,1725387031747,-595.98591369,0.00013922,2]
[337053297,1725387031757,-500.0,0.00013922,2]
[337053298,1725387031767,-566.4,0.00013922,2]
[337053299,1725387031777,-500.0,0.00013922,2]
[337053300,1725387031786,-500.0,0.00013922,2]
[337053301,1725387031796,-1113.93,0.00013922,2]
[337053303,1725387031805,-560.0,0.00013922,2]
[337053306,1725387031815,-1397.33,0.00013922,2]
[337053309,1725387031825,-500.0,0.00013922,2]
[337053311,1725387031835,-548.02,0.00013922,2]
[337053314,1725387031844,-500.0,0.00013922,2]
[337053317,1725387031854,-500.0,0.00013922,2]
[337053321,1725387031865,-1170.68,0.00013922,2]
[337053324,1725387031874,-616.69,0.00013922,2]
[337053327,1725387031884,-500.0,0.00013922,2]
[337053330,1725387031894,-583.38,0.00013922,2]
[337053333,1725387031903,-547.39,0.00013922,2]
[337053336,1725387031914,-1032.68,0.00013922,2]
[337053339,1725387031923,-500.0,0.00013922,2]
[337053340,1725387031932,-557.88,0.00013922,2]
[337053342,1725387031942,-500.0,0.00013922,2]
[337053344,1725387031951,-500.0,0.00013922,2]
[337053347,1725387031961,-500.0,0.00013922,2]
[337053373,1725387032206,-1034.92,0.00013922,2]
[337053375,1725387032216,-500.0,0.00013922,2]
[337053377,1725387032226,-1428.56,0.00013922,2]
[337053379,1725387032236,-1446.91,0.00013922,2]
[337053381,1725387032245,-500.0,0.00013922,2]
[337053383,1725387032254,-500.0,0.00013922,2]
[337053385,1725387032265,-500.0,0.00013922,2]
[337053387,1725387032275,-500.0,0.00013922,2]
[337053389,1725387032285,-562.0,0.00013922,2]
[337053391,1725387032294,-908.48,0.00013922,2]
[337053393,1725387032304,-740.32,0.00013922,2]
[337053395,1725387032313,-500.0,0.00013922,2]
[337053397,1725387032323,-770.18,0.00013922,2]
[337053399,1725387032333,-711.95,0.00013922,2]
[337053401,1725387032343,-500.0,0.00013922,2]
[337053403,1725387032353,-9209.7,0.00013922,2]
[337053404,1725387032362,-500.0,0.00013922,2]
[337053406,1725387032372,-635.27,0.00013922,2]
[337053408,1725387032382,-500.0,0.00013922,2]
[337053410,1725387032393,-1366.55,0.00013922,2]
[337053412,1725387032403,-500.0,0.00013922,2]
[337053414,1725387032412,-500.0,0.00013922,2]
[337053416,1725387032423,-2337.78,0.00013922,2]
[337053418,1725387032433,-500.0,0.00013922,2]
[337053420,1725387032442,-500.0,0.00013922,2]
[337053422,1725387032451,-2579.16,0.00013922,2]
[337053424,1725387032461,-1058.27,0.00013922,2]
[337053426,1725387032471,-822.51,0.00013922,2]
[337053428,1725387032480,-7893.38,0.00013922,2]
[337053430,1725387032489,-1460.61,0.00013922,2]
[337053432,1725387032499,-609.23,0.00013922,2]
[337053434,1725387032508,-1494.62,0.00013922,2]
[337053436,1725387032517,-572.26,0.00013922,2]
[337053438,1725387032526,-3317.19,0.00013922,2]
[337053440,1725387032536,-500.0,0.00013922,2]
[337053441,1725387032546,-1933.64,0.00013922,2]
[337053442,1725387032557,-500.0,0.00013922,2]
[337053443,1725387032568,-8637.66317255,0.00013922,2]
[337053444,1725387032581,-722.83177967,0.00013922,2]
[337053446,1725387032697,-974.60504778,0.00013922,2]
[337053447,1725387032707,-2197.78163608,0.00013922,2]
[337053449,1725387032719,-490.46366303,0.00013922,2]
[337053451,1725387032730,-697.89036063,0.00013922,2]
[337053503,1725387037507,-256.65943803,0.00013922,2]
[337053504,1725387037516,-1027.38434026,0.00013922,2]
[337053505,1725387037525,-462.98756054,0.00013922,2]
[337053506,1725387037536,-37.01243946,0.00013922,2]
[337053507,1725387037546,-1739.2,0.00013922,2]
[337053508,1725387037558,-500.0,0.00013922,2]
[337053509,1725387037567,-500.0,0.00013922,2]
[337053510,1725387037576,-2244.5450007,0.00013922,2]
[337053550,1725387039625,-1222.0949993,0.00013922,2]
[337053551,1725387039635,-500.0,0.00013922,2]
[337053552,1725387039647,-500.0,0.00013922,2]
[337053553,1725387039657,-4687.87,0.00013922,2]
[337053554,1725387039666,-517.40600368,0.00013922,2]
[337053555,1725387039676,-500.0,0.00013922,2]
[337053556,1725387039685,-1416.13,0.00013922,2]
[337053557,1725387039695,-703.95,0.00013922,2]
[337053558,1725387039703,-1405.37,0.00013922,2]
[337053559,1725387039713,-6632.05,0.00013922,2]
[337053560,1725387039723,-1436.79,0.00013922,2]
[337053561,1725387039732,-500.0,0.00013922,2]
[337053562,1725387039741,-500.0,0.00013922,2]
[337053563,1725387039750,-4294.89,0.00013922,2]
[337053564,1725387039759,-500.0,0.00013922,2]
[337053565,1725387039769,-4951.38,0.00013922,2]
[337053566,1725387039779,-500.0,0.00013922,2]
[337053567,1725387039789,-1723.42,0.00013922,2]
[337053568,1725387039799,-500.0,0.00013922,2]
[337053569,1725387039809,-500.0,0.00013922,2]
[337053570,1725387039818,-526.31,0.00013922,2]
[337053571,1725387039828,-645.8,0.00013922,2]
[337053572,1725387039837,-1266.92,0.00013922,2]
[337053573,1725387039846,-2638.81,0.00013922,2]
[337053574,1725387039855,-3277.12,0.00013922,2]
[337053575,1725387039866,-2044.61,0.00013922,2]
[337053576,1725387039876,-2312.86155598,0.00013922,2]
[337053577,1725387039913,-3755.92844402,0.00013922,2]
[337053578,1725387039923,-3246.72,0.00013922,2]
[337053579,1725387039932,-500.0,0.00013922,2]
[337053580,1725387039941,-2169.74,0.00013922,2]
[337053581,1725387039950,-1694.69,0.00013922,2]
[337053582,1725387039961,-1019.61,0.00013922,2]
[337053583,1725387039970,-2215.84,0.00013922,2]
[337053584,1725387039979,-14853.52,0.00013922,2]
[337053585,1725387039989,-2433.79,0.00013922,2]
[337053586,1725387039998,-8837.73,0.00013922,2]